[Event "Titled Tuesday Blitz May 30 Late 2023"]
[White "Sarkar, Justin"]
[Black "Baidetskyi, Valentin"]
[WhiteFideId "2010011"]
[BlackFideId "14142317"]
[WhiteElo "2168"]
[BlackElo "2490"]
[Result "0-1"]
[Round "03"]
[TimeControl "180+2"]
[Date "2023.05.31"]
[WhiteClock "0:00:01"]
[BlackClock "0:00:07"]

1. e4 {[%clk 0:02:54]}  c6 {[%clk 0:02:57]} 2. d4 {[%clk 0:02:54]}  d5 {[%clk 0:02:58]} 3. e5 {[%clk 0:02:53]}  Bf5 {[%clk 0:02:57]} 4. f4 {[%clk 0:02:52]}  e6 {[%clk 0:02:55]} 5. Nf3 {[%clk 0:02:52]}  c5 {[%clk 0:02:55]} 6. Be3 {[%clk 0:02:49]}  Qb6 {[%clk 0:02:53]} 7. Nc3 {[%clk 0:02:46]}  Nc6 {[%clk 0:02:53]} 8. dxc5 {[%clk 0:02:23]}  Bxc5 {[%clk 0:02:52]} 9. Bxc5 {[%clk 0:02:19]}  Qxc5 {[%clk 0:02:52]} 10. Nb5 {[%clk 0:02:18]}  O-O-O {[%clk 0:02:39]} 11. Nfd4 {[%clk 0:01:54]}  Nge7 {[%clk 0:02:27]} 12. c3 {[%clk 0:01:42]}  g5 {[%clk 0:02:24]} 13. Nd6+ {[%clk 0:01:37]}  Rxd6 {[%clk 0:02:21]} 14. exd6 {[%clk 0:01:37]}  Qxd6 {[%clk 0:02:22]} 15. fxg5 {[%clk 0:01:38]}  Be4 {[%clk 0:02:06]} 16. Qd2 {[%clk 0:01:27]}  Ne5 {[%clk 0:01:46]} 17. Nb5 {[%clk 0:01:10]}  Qb8 {[%clk 0:01:29]} 18. Qd4 {[%clk 0:01:10]}  N7c6 {[%clk 0:01:27]} 19. Qc5 {[%clk 0:01:08]}  Rd8 {[%clk 0:01:24]} 20. Qf2 {[%clk 0:00:54]}  Ng4 {[%clk 0:00:48]} 21. Qg3 {[%clk 0:00:47]}  Qxg3+ {[%clk 0:00:47]} 22. hxg3 {[%clk 0:00:46]}  a6 {[%clk 0:00:28]} 23. Nd4 {[%clk 0:00:45]}  Nce5 {[%clk 0:00:22]} 24. Kd2 {[%clk 0:00:39]}  Rg8 {[%clk 0:00:19]} 25. Rh5 {[%clk 0:00:33]}  Bg6 {[%clk 0:00:19]} 26. Rh4 {[%clk 0:00:32]}  Be4 {[%clk 0:00:19]} 27. Be2 {[%clk 0:00:29]}  Rxg5 {[%clk 0:00:17]} 28. Nf3 {[%clk 0:00:23]}  Rg7 {[%clk 0:00:16]} 29. Rah1 {[%clk 0:00:14]}  Kc7 {[%clk 0:00:15]} 30. Nxe5 {[%clk 0:00:10]}  Nxe5 {[%clk 0:00:15]} 31. R1h2 {[%clk 0:00:04]}  Rxg3 {[%clk 0:00:13]} 32. R4h3 {[%clk 0:00:05]}  Rg7 {[%clk 0:00:13]} 33. g3 {[%clk 0:00:05]}  Kd6 {[%clk 0:00:13]} 34. Ke3 {[%clk 0:00:05]}  Bf5 {[%clk 0:00:13]} 35. g4 {[%clk 0:00:03]}  Bxg4 {[%clk 0:00:13]} 36. Rg3 {[%clk 0:00:03]}  f5 {[%clk 0:00:08]} 37. Rhg2 {[%clk 0:00:03]}  h5 {[%clk 0:00:08]} 38. Bf1 {[%clk 0:00:01]}  h4 {[%clk 0:00:07]} 0-1


[Site "https://www.chess.com"]

[Event "Titled Tuesday Blitz May 30 Late 2023"]
[White "Dubreuil, Julien"]
[Black "egorchess95"]
[WhiteFideId "621285"]
[WhiteElo "2288"]
[BlackElo "2666"]
[Result "0-1"]
[Round "03"]
[TimeControl "180+2"]
[Date "2023.05.31"]
[WhiteClock "0:00:31"]
[BlackClock "0:02:08"]

1. e4 {[%clk 0:03:00]}  c5 {[%clk 0:02:59]} 2. Nf3 {[%clk 0:03:00]}  Nc6 {[%clk 0:03:00]} 3. d4 {[%clk 0:03:01]}  cxd4 {[%clk 0:03:00]} 4. Nxd4 {[%clk 0:03:01]}  Nf6 {[%clk 0:03:00]} 5. Nc3 {[%clk 0:03:01]}  e5 {[%clk 0:03:01]} 6. Ndb5 {[%clk 0:03:01]}  d6 {[%clk 0:03:01]} 7. Na3 {[%clk 0:03:01]}  a6 {[%clk 0:03:01]} 8. Nc4 {[%clk 0:02:59]}  Be6 {[%clk 0:03:00]} 9. Bg5 {[%clk 0:02:58]}  Rb8 {[%clk 0:03:00]} 10. Bxf6 {[%clk 0:02:56]}  Qxf6 {[%clk 0:03:00]} 11. Nd5 {[%clk 0:02:56]}  Qd8 {[%clk 0:03:00]} 12. Nce3 {[%clk 0:02:51]}  Be7 {[%clk 0:03:00]} 13. Bc4 {[%clk 0:02:50]}  Bg5 {[%clk 0:03:00]} 14. O-O {[%clk 0:02:47]}  O-O {[%clk 0:03:01]} 15. a4 {[%clk 0:02:46]}  Kh8 {[%clk 0:03:00]} 16. c3 {[%clk 0:02:46]}  Ne7 {[%clk 0:02:58]} 17. a5 {[%clk 0:02:33]}  g6 {[%clk 0:02:43]} 18. Qe2 {[%clk 0:02:20]}  f5 {[%clk 0:02:43]} 19. exf5 {[%clk 0:02:17]}  gxf5 {[%clk 0:02:23]} 20. Nxe7 {[%clk 0:02:13]}  Qxe7 {[%clk 0:02:20]} 21. Bxe6 {[%clk 0:02:06]}  Qxe6 {[%clk 0:02:20]} 22. Qc4 {[%clk 0:02:05]}  Qg6 {[%clk 0:02:20]} 23. Nd5 {[%clk 0:01:58]}  Rg8 {[%clk 0:02:17]} 24. g3 {[%clk 0:01:56]}  f4 {[%clk 0:02:17]} 25. Rae1 {[%clk 0:01:47]}  Rbf8 {[%clk 0:02:15]} 26. Qe4 {[%clk 0:01:47]}  Qh5 {[%clk 0:02:16]} 27. Kh1 {[%clk 0:01:37]}  f3 {[%clk 0:02:09]} 28. Rg1 {[%clk 0:01:25]}  Qh3 {[%clk 0:02:07]} 29. g4 {[%clk 0:00:33]}  Rf4 {[%clk 0:02:06]} 30. Nxf4 {[%clk 0:00:31]}  Bxf4 {[%clk 0:02:07]} 31. Rg3 {[%clk 0:00:31]}  Bxg3 {[%clk 0:02:07]} 32. fxg3 {[%clk 0:00:31]}  f2 {[%clk 0:02:08]} 0-1


[Site "https://www.chess.com"]

[Event "Titled Tuesday Blitz May 30 Late 2023"]
[White "Iskusnyh, Sergei"]
[Black "KVAIDAN"]
[WhiteFideId "4120027"]
[WhiteElo "2492"]
[BlackElo "2286"]
[Result "1-0"]
[Round "03"]
[TimeControl "180+2"]
[Date "2023.05.31"]
[WhiteClock "0:00:06"]
[BlackClock "0:00:19"]

1. e4 {[%clk 0:03:00]}  e5 {[%clk 0:03:00]} 2. Nf3 {[%clk 0:03:00]}  d5 {[%clk 0:03:00]} 3. exd5 {[%clk 0:02:58]}  e4 {[%clk 0:03:00]} 4. Qe2 {[%clk 0:02:58]}  Nf6 {[%clk 0:03:00]} 5. d3 {[%clk 0:02:58]}  Bb4+ {[%clk 0:02:59]} 6. Bd2 {[%clk 0:02:46]}  O-O {[%clk 0:02:59]} 7. Bxb4 {[%clk 0:02:45]}  exf3 {[%clk 0:02:58]} 8. Qxf3 {[%clk 0:02:44]}  Re8+ {[%clk 0:02:59]} 9. Kd2 {[%clk 0:02:41]}  Bg4 {[%clk 0:02:51]} 10. Qg3 {[%clk 0:02:34]}  Qxd5 {[%clk 0:02:51]} 11. Nc3 {[%clk 0:02:24]}  Qg5+ {[%clk 0:02:50]} 12. f4 {[%clk 0:02:23]}  Qh5 {[%clk 0:02:42]} 13. h3 {[%clk 0:02:20]}  Nc6 {[%clk 0:02:40]} 14. Ba3 {[%clk 0:02:06]}  Nd4 {[%clk 0:02:40]} 15. Rh2 {[%clk 0:01:49]}  Bd7 {[%clk 0:02:29]} 16. Qg5 {[%clk 0:01:49]}  Qxg5 {[%clk 0:02:12]} 17. fxg5 {[%clk 0:01:48]}  Nh5 {[%clk 0:02:12]} 18. Bc5 {[%clk 0:01:36]}  Ne6 {[%clk 0:02:03]} 19. Be3 {[%clk 0:01:32]}  g6 {[%clk 0:02:03]} 20. g4 {[%clk 0:01:27]}  Nhf4 {[%clk 0:02:01]} 21. Ne4 {[%clk 0:01:25]}  Nd5 {[%clk 0:01:59]} 22. Bf2 {[%clk 0:01:15]}  Kg7 {[%clk 0:01:41]} 23. c4 {[%clk 0:01:13]}  Nb4 {[%clk 0:01:39]} 24. Bg3 {[%clk 0:01:02]}  Bc6 {[%clk 0:01:33]} 25. a3 {[%clk 0:00:55]}  Bxe4 {[%clk 0:01:26]} 26. axb4 {[%clk 0:00:54]}  Rad8 {[%clk 0:01:20]} 27. Kc3 {[%clk 0:00:49]}  Bc6 {[%clk 0:01:13]} 28. b5 {[%clk 0:00:47]}  Bd7 {[%clk 0:01:13]} 29. Be5+ {[%clk 0:00:41]}  Kg8 {[%clk 0:01:12]} 30. Bf6 {[%clk 0:00:41]}  Ra8 {[%clk 0:01:11]} 31. Bg2 {[%clk 0:00:40]}  c6 {[%clk 0:01:09]} 32. bxc6 {[%clk 0:00:37]}  Bxc6 {[%clk 0:01:09]} 33. Bxc6 {[%clk 0:00:36]}  bxc6 {[%clk 0:01:10]} 34. b4 {[%clk 0:00:28]}  Nf4 {[%clk 0:01:09]} 35. h4 {[%clk 0:00:23]}  Re3 {[%clk 0:01:03]} 36. Rd1 {[%clk 0:00:19]}  a5 {[%clk 0:01:00]} 37. b5 {[%clk 0:00:07]}  cxb5 {[%clk 0:01:00]} 38. cxb5 {[%clk 0:00:07]}  Rc8+ {[%clk 0:00:59]} 39. Kd4 {[%clk 0:00:07]}  Rg3 {[%clk 0:00:58]} 40. b6 {[%clk 0:00:05]}  Ne6+ {[%clk 0:00:58]} 41. Kd5 {[%clk 0:00:04]}  Rxg4 {[%clk 0:00:49]} 42. d4 {[%clk 0:00:03]}  Rg3 {[%clk 0:00:45]} 43. Rb2 {[%clk 0:00:03]}  Re8 {[%clk 0:00:41]} 44. b7 {[%clk 0:00:03]}  Nc7+ {[%clk 0:00:42]} 45. Kc6 {[%clk 0:00:02]}  Na6 {[%clk 0:00:41]} 46. Be5 {[%clk 0:00:02]}  Rc3+ {[%clk 0:00:40]} 47. Kd7 {[%clk 0:00:02]}  Rf8 {[%clk 0:00:35]} 48. b8=Q {[%clk 0:00:02]}  Nxb8+ {[%clk 0:00:35]} 49. Rxb8 {[%clk 0:00:01]}  a4 {[%clk 0:00:28]} 50. Rxf8+ {[%clk 0:00:01]}  Kxf8 {[%clk 0:00:27]} 51. d5 {[%clk 0:00:02]}  Rb3 {[%clk 0:00:26]} 52. d6 {[%clk 0:00:02]}  Rb7+ {[%clk 0:00:26]} 53. Kc6 {[%clk 0:00:02]}  Ra7 {[%clk 0:00:25]} 54. d7 {[%clk 0:00:03]}  Ra8 {[%clk 0:00:24]} 55. Kb7 {[%clk 0:00:03]}  Rd8 {[%clk 0:00:23]} 56. Bd6+ {[%clk 0:00:04]}  Kg7 {[%clk 0:00:21]} 57. Kc7 {[%clk 0:00:05]}  Ra8 {[%clk 0:00:21]} 58. Be5+ {[%clk 0:00:05]}  Kf8 {[%clk 0:00:19]} 59. Bf6 {[%clk 0:00:06]}  Ra7+ {[%clk 0:00:17]} 60. Kb6 {[%clk 0:00:06]}  Rxd7 {[%clk 0:00:18]} 61. Rxd7 {[%clk 0:00:05]}  Ke8 {[%clk 0:00:19]} 62. Rd8# {[%clk 0:00:06]} 1-0


[Site "https://www.chess.com"]

[Event "Titled Tuesday Blitz May 30 Late 2023"]
[White "Almeida Junior, Alvaro Alves de"]
[Black "Uzcategui Rodriguez, Alejandro"]
[WhiteFideId "2149974"]
[BlackFideId "3903400"]
[WhiteElo "2122"]
[BlackElo "2252"]
[Result "0-1"]
[Round "03"]
[TimeControl "180+2"]
[Date "2023.05.31"]
[WhiteClock "0:02:31"]
[BlackClock "0:02:07"]

1. e4 {[%clk 0:03:00]}  d6 {[%clk 0:02:59]} 2. d4 {[%clk 0:03:00]}  Nf6 {[%clk 0:02:59]} 3. Nc3 {[%clk 0:03:01]}  Nbd7 {[%clk 0:02:57]} 4. Be3 {[%clk 0:02:57]}  e5 {[%clk 0:02:57]} 5. f3 {[%clk 0:02:58]}  Be7 {[%clk 0:02:43]} 6. Qd2 {[%clk 0:02:55]}  c6 {[%clk 0:02:43]} 7. O-O-O {[%clk 0:02:54]}  b5 {[%clk 0:02:42]} 8. dxe5 {[%clk 0:02:55]}  dxe5 {[%clk 0:02:36]} 9. g4 {[%clk 0:02:54]}  Qa5 {[%clk 0:02:35]} 10. Kb1 {[%clk 0:02:54]}  b4 {[%clk 0:02:35]} 11. Nce2 {[%clk 0:02:54]}  Nc5 {[%clk 0:02:35]} 12. h4 {[%clk 0:02:49]}  Be6 {[%clk 0:02:32]} 13. b3 {[%clk 0:02:45]}  Rb8 {[%clk 0:02:17]} 14. Nc1 {[%clk 0:02:44]}  Nfxe4 {[%clk 0:02:16]} 15. fxe4 {[%clk 0:02:43]}  Nxe4 {[%clk 0:02:17]} 16. Qd3 {[%clk 0:02:31]}  Nc3+ {[%clk 0:02:17]} 17. Ka1 {[%clk 0:02:31]}  Rd8 {[%clk 0:02:07]} 0-1


[Site "https://www.chess.com"]

[Event "Titled Tuesday Blitz May 30 Late 2023"]
[White "Skuhala, Barbara"]
[Black "Remolar Gallen, Jose"]
[WhiteFideId "14605465"]
[BlackFideId "2215187"]
[WhiteElo "2072"]
[BlackElo "2223"]
[Result "1-0"]
[Round "03"]
[TimeControl "180+2"]
[Date "2023.05.31"]
[WhiteClock "0:00:24"]
[BlackClock "0:00:04"]

1. e4 {[%clk 0:02:57]}  c5 {[%clk 0:02:57]} 2. Nf3 {[%clk 0:02:57]}  d6 {[%clk 0:02:55]} 3. d4 {[%clk 0:02:55]}  cxd4 {[%clk 0:02:55]} 4. Nxd4 {[%clk 0:02:53]}  Nf6 {[%clk 0:02:55]} 5. f3 {[%clk 0:02:50]}  e5 {[%clk 0:02:52]} 6. Nb3 {[%clk 0:02:26]}  a5 {[%clk 0:02:51]} 7. a4 {[%clk 0:02:24]}  d5 {[%clk 0:02:47]} 8. Bg5 {[%clk 0:02:08]}  d4 {[%clk 0:02:41]} 9. c3 {[%clk 0:02:04]}  Nc6 {[%clk 0:02:34]} 10. Bb5 {[%clk 0:02:00]}  Be7 {[%clk 0:02:03]} 11. cxd4 {[%clk 0:01:59]}  exd4 {[%clk 0:01:59]} 12. Qxd4 {[%clk 0:01:58]}  O-O {[%clk 0:01:52]} 13. Qxd8 {[%clk 0:01:57]}  Rxd8 {[%clk 0:01:51]} 14. Nc3 {[%clk 0:01:54]}  Nb4 {[%clk 0:01:46]} 15. O-O {[%clk 0:01:53]}  Be6 {[%clk 0:01:44]} 16. Nc1 {[%clk 0:01:44]}  h6 {[%clk 0:01:28]} 17. Bxf6 {[%clk 0:01:40]}  Bxf6 {[%clk 0:01:28]} 18. N1e2 {[%clk 0:01:40]}  Rd2 {[%clk 0:01:24]} 19. Rab1 {[%clk 0:01:37]}  Rad8 {[%clk 0:01:22]} 20. Rfd1 {[%clk 0:01:35]}  Bb3 {[%clk 0:01:06]} 21. Rxd2 {[%clk 0:01:34]}  Rxd2 {[%clk 0:01:07]} 22. f4 {[%clk 0:01:31]}  Be7 {[%clk 0:01:04]} 23. h3 {[%clk 0:01:17]}  Bc5+ {[%clk 0:00:53]} 24. Kh1 {[%clk 0:01:17]}  Be3 {[%clk 0:00:54]} 25. Ng3 {[%clk 0:01:04]}  Bxf4 {[%clk 0:00:50]} 26. Nf5 {[%clk 0:01:04]}  Be5 {[%clk 0:00:40]} 27. Ne3 {[%clk 0:00:49]}  g6 {[%clk 0:00:32]} 28. Be8 {[%clk 0:00:41]}  Kf8 {[%clk 0:00:29]} 29. Bb5 {[%clk 0:00:41]}  Nc2 {[%clk 0:00:21]} 30. Ng4 {[%clk 0:00:38]}  Bg3 {[%clk 0:00:18]} 31. Nxh6 {[%clk 0:00:31]}  Kg7 {[%clk 0:00:18]} 32. Ng4 {[%clk 0:00:31]}  f5 {[%clk 0:00:18]} 33. exf5 {[%clk 0:00:31]}  gxf5 {[%clk 0:00:18]} 34. Nh2 {[%clk 0:00:29]}  Ne3 {[%clk 0:00:17]} 35. Nf3 {[%clk 0:00:25]}  Rxg2 {[%clk 0:00:15]} 36. Rg1 {[%clk 0:00:25]}  Rxg1+ {[%clk 0:00:13]} 37. Kxg1 {[%clk 0:00:25]}  Bf4 {[%clk 0:00:12]} 38. Nd4 {[%clk 0:00:23]}  Bf7 {[%clk 0:00:08]} 39. Nce2 {[%clk 0:00:22]}  Be5 {[%clk 0:00:06]} 40. Kf2 {[%clk 0:00:22]}  f4 {[%clk 0:00:06]} 41. Nf3 {[%clk 0:00:22]}  Bh5 {[%clk 0:00:06]} 42. Nxe5 {[%clk 0:00:22]}  Bxe2 {[%clk 0:00:06]} 43. Kxe2 {[%clk 0:00:22]}  Kf6 {[%clk 0:00:05]} 44. Ng4+ {[%clk 0:00:22]}  Nxg4 {[%clk 0:00:03]} 45. hxg4 {[%clk 0:00:23]}  Kg5 {[%clk 0:00:04]} 46. Kf3 {[%clk 0:00:24]} 1-0


[Site "https://www.chess.com"]

[Event "Titled Tuesday Blitz May 30 Late 2023"]
[White "Goffredo_Fofi"]
[Black "Wang, Alexander J"]
[BlackFideId "30955270"]
[WhiteElo "2467"]
[BlackElo "2268"]
[Result "1-0"]
[Round "03"]
[TimeControl "180+2"]
[Date "2023.05.31"]
[WhiteClock "0:01:22"]
[BlackClock "0:00:48"]

1. e4 {[%clk 0:03:00]}  c5 {[%clk 0:02:57]} 2. d3 {[%clk 0:03:00]}  Nc6 {[%clk 0:02:57]} 3. g3 {[%clk 0:03:01]}  d6 {[%clk 0:02:58]} 4. Bg2 {[%clk 0:03:01]}  g6 {[%clk 0:02:58]} 5. f4 {[%clk 0:03:02]}  Bg7 {[%clk 0:02:59]} 6. Nf3 {[%clk 0:03:02]}  e6 {[%clk 0:02:59]} 7. O-O {[%clk 0:03:03]}  Nge7 {[%clk 0:03:00]} 8. c3 {[%clk 0:03:03]}  O-O {[%clk 0:03:00]} 9. Be3 {[%clk 0:03:02]}  b6 {[%clk 0:02:59]} 10. Bf2 {[%clk 0:03:02]}  Bb7 {[%clk 0:03:00]} 11. Re1 {[%clk 0:03:02]}  d5 {[%clk 0:03:00]} 12. e5 {[%clk 0:03:02]}  Rc8 {[%clk 0:02:50]} 13. Na3 {[%clk 0:02:51]}  a6 {[%clk 0:02:49]} 14. Nc2 {[%clk 0:02:48]}  Qd7 {[%clk 0:02:21]} 15. g4 {[%clk 0:02:47]}  d4 {[%clk 0:02:07]} 16. c4 {[%clk 0:02:44]}  b5 {[%clk 0:02:01]} 17. b3 {[%clk 0:02:43]}  bxc4 {[%clk 0:01:58]} 18. bxc4 {[%clk 0:02:44]}  Na7 {[%clk 0:01:48]} 19. Qd2 {[%clk 0:02:39]}  Bc6 {[%clk 0:01:43]} 20. Bh4 {[%clk 0:02:35]}  Rfe8 {[%clk 0:01:35]} 21. Bf6 {[%clk 0:02:31]}  Qb7 {[%clk 0:01:29]} 22. Rab1 {[%clk 0:02:27]}  Qa8 {[%clk 0:01:28]} 23. Rf1 {[%clk 0:02:04]}  Rb8 {[%clk 0:01:13]} 24. Ng5 {[%clk 0:01:45]}  Bxg2 {[%clk 0:01:07]} 25. Qxg2 {[%clk 0:01:46]}  Qxg2+ {[%clk 0:01:06]} 26. Kxg2 {[%clk 0:01:47]}  Bf8 {[%clk 0:00:52]} 27. Ne4 {[%clk 0:01:44]}  Nec6 {[%clk 0:00:53]} 28. Bh4 {[%clk 0:01:36]}  Rxb1 {[%clk 0:00:48]} 29. Nf6+ {[%clk 0:01:22]} 1-0


[Site "https://www.chess.com"]

[Event "Titled Tuesday Blitz May 30 Late 2023"]
[White "Schut, Han"]
[Black "Mazurkiewicz, Michal"]
[WhiteFideId "1005561"]
[BlackFideId "1124943"]
[WhiteElo "2024"]
[BlackElo "2054"]
[Result "0-1"]
[Round "03"]
[TimeControl "180+2"]
[Date "2023.05.31"]
[WhiteClock "0:00:20"]
[BlackClock "0:01:26"]

1. e4 {[%clk 0:03:00]}  d6 {[%clk 0:02:59]} 2. d4 {[%clk 0:03:00]}  Nf6 {[%clk 0:02:59]} 3. Nc3 {[%clk 0:03:00]}  c6 {[%clk 0:02:59]} 4. f4 {[%clk 0:03:00]}  Qb6 {[%clk 0:02:59]} 5. Nf3 {[%clk 0:02:57]}  Bg4 {[%clk 0:02:59]} 6. e5 {[%clk 0:02:39]}  Nd5 {[%clk 0:02:59]} 7. Nxd5 {[%clk 0:02:24]}  cxd5 {[%clk 0:02:59]} 8. c3 {[%clk 0:02:25]}  Nc6 {[%clk 0:03:00]} 9. h3 {[%clk 0:02:17]}  Bxf3 {[%clk 0:02:59]} 10. Qxf3 {[%clk 0:02:18]}  e6 {[%clk 0:03:00]} 11. Bd3 {[%clk 0:02:11]}  g6 {[%clk 0:03:00]} 12. Qf2 {[%clk 0:02:01]}  h5 {[%clk 0:02:52]} 13. Be3 {[%clk 0:01:44]}  Ne7 {[%clk 0:02:52]} 14. O-O {[%clk 0:01:34]}  Nf5 {[%clk 0:02:52]} 15. Rab1 {[%clk 0:01:20]}  Be7 {[%clk 0:02:46]} 16. Bd2 {[%clk 0:01:07]}  Rc8 {[%clk 0:02:24]} 17. a3 {[%clk 0:01:04]}  Kf8 {[%clk 0:01:55]} 18. g4 {[%clk 0:00:54]}  hxg4 {[%clk 0:01:49]} 19. hxg4 {[%clk 0:00:55]}  Bh4 {[%clk 0:01:49]} 20. Qf3 {[%clk 0:00:47]}  Ng3 {[%clk 0:01:47]} 21. f5 {[%clk 0:00:40]}  gxf5 {[%clk 0:01:39]} 22. gxf5 {[%clk 0:00:41]}  dxe5 {[%clk 0:01:40]} 23. fxe6 {[%clk 0:00:35]}  Qxe6 {[%clk 0:01:40]} 24. dxe5 {[%clk 0:00:34]}  Nxf1 {[%clk 0:01:37]} 25. Ra1 {[%clk 0:00:20]}  Nxd2 {[%clk 0:01:26]} 0-1


[Site "https://www.chess.com"]

[Event "Titled Tuesday Blitz May 30 Late 2023"]
[White "Ansh M Shah"]
[Black "Osmonbekov, Talaibek"]
[WhiteFideId "25033379"]
[BlackFideId "2017253"]
[WhiteElo "2084"]
[BlackElo "2135"]
[Result "1-0"]
[Round "03"]
[TimeControl "180+2"]
[Date "2023.05.31"]
[WhiteClock "0:00:43"]
[BlackClock "0:00:08"]

1. d4 {[%clk 0:03:00]}  e6 {[%clk 0:02:58]} 2. c4 {[%clk 0:03:01]}  f5 {[%clk 0:02:58]} 3. g3 {[%clk 0:03:02]}  Nf6 {[%clk 0:02:58]} 4. Bg2 {[%clk 0:03:03]}  Be7 {[%clk 0:02:59]} 5. Nf3 {[%clk 0:03:04]}  O-O {[%clk 0:02:59]} 6. O-O {[%clk 0:03:05]}  d6 {[%clk 0:03:00]} 7. Nc3 {[%clk 0:03:05]}  Ne4 {[%clk 0:02:59]} 8. Qc2 {[%clk 0:03:02]}  Nxc3 {[%clk 0:02:59]} 9. Qxc3 {[%clk 0:03:02]}  a5 {[%clk 0:02:59]} 10. Rd1 {[%clk 0:03:01]}  Bf6 {[%clk 0:02:50]} 11. Qc2 {[%clk 0:03:00]}  Nc6 {[%clk 0:02:49]} 12. b3 {[%clk 0:02:57]}  Qe8 {[%clk 0:02:46]} 13. Bb2 {[%clk 0:02:57]}  e5 {[%clk 0:02:45]} 14. dxe5 {[%clk 0:02:53]}  dxe5 {[%clk 0:02:46]} 15. e4 {[%clk 0:02:51]}  f4 {[%clk 0:02:42]} 16. gxf4 {[%clk 0:02:26]}  exf4 {[%clk 0:02:43]} 17. e5 {[%clk 0:02:24]}  Be7 {[%clk 0:02:43]} 18. Qe4 {[%clk 0:02:21]}  Be6 {[%clk 0:02:30]} 19. Kh1 {[%clk 0:02:19]}  g5 {[%clk 0:02:06]} 20. Rg1 {[%clk 0:02:16]}  Kh8 {[%clk 0:02:02]} 21. Nd4 {[%clk 0:02:12]}  Nxd4 {[%clk 0:02:00]} 22. Bxd4 {[%clk 0:02:12]}  c6 {[%clk 0:01:59]} 23. Rad1 {[%clk 0:01:59]}  Qh5 {[%clk 0:01:50]} 24. Bf3 {[%clk 0:01:55]}  g4 {[%clk 0:01:49]} 25. Be2 {[%clk 0:01:32]}  f3 {[%clk 0:01:47]} 26. Bd3 {[%clk 0:01:30]}  Bg5 {[%clk 0:01:14]} 27. Be3 {[%clk 0:01:11]}  Be7 {[%clk 0:00:34]} 28. Bf4 {[%clk 0:01:03]}  Rad8 {[%clk 0:00:26]} 29. Bg3 {[%clk 0:01:02]}  Qf7 {[%clk 0:00:16]} 30. Bc2 {[%clk 0:00:58]}  h5 {[%clk 0:00:15]} 31. Rxd8 {[%clk 0:00:49]}  Bxd8 {[%clk 0:00:16]} 32. Bf4 {[%clk 0:00:48]}  Bf5 {[%clk 0:00:14]} 33. Qxf5 {[%clk 0:00:48]}  Qxf5 {[%clk 0:00:13]} 34. Bxf5 {[%clk 0:00:49]}  Rxf5 {[%clk 0:00:13]} 35. Rd1 {[%clk 0:00:45]}  Bb6 {[%clk 0:00:11]} 36. Bg3 {[%clk 0:00:43]}  h4 {[%clk 0:00:08]} 37. Bxh4 {[%clk 0:00:43]}  Rxe5 {[%clk 0:00:08]} 38. Bf6+ {[%clk 0:00:43]} 1-0


[Site "https://www.chess.com"]

[Event "Titled Tuesday Blitz May 30 Late 2023"]
[White "Gasparyan, David"]
[Black "Prithu Gupta"]
[WhiteFideId "13311980"]
[BlackFideId "46618546"]
[WhiteElo "2390"]
[BlackElo "2344"]
[Result "1-0"]
[Round "03"]
[TimeControl "180+2"]
[Date "2023.05.31"]
[WhiteClock "0:01:21"]
[BlackClock "0:01:40"]

1. Nf3 {[%clk 0:02:59]}  d5 {[%clk 0:02:59]} 2. g3 {[%clk 0:02:59]}  g6 {[%clk 0:02:59]} 3. Bg2 {[%clk 0:02:59]}  Bg7 {[%clk 0:02:59]} 4. d3 {[%clk 0:02:57]}  e5 {[%clk 0:02:59]} 5. O-O {[%clk 0:02:58]}  Ne7 {[%clk 0:03:00]} 6. Qe1 {[%clk 0:02:56]}  O-O {[%clk 0:02:58]} 7. e4 {[%clk 0:02:56]}  Nbc6 {[%clk 0:02:58]} 8. c3 {[%clk 0:02:53]}  h6 {[%clk 0:02:57]} 9. Nbd2 {[%clk 0:02:52]}  Kh7 {[%clk 0:02:58]} 10. exd5 {[%clk 0:02:44]}  Nxd5 {[%clk 0:02:57]} 11. Nc4 {[%clk 0:02:43]}  Bf5 {[%clk 0:02:47]} 12. Qe2 {[%clk 0:02:18]}  Nxc3 {[%clk 0:02:42]} 13. bxc3 {[%clk 0:02:17]}  Bxd3 {[%clk 0:02:42]} 14. Qb2 {[%clk 0:02:14]}  Bxc4 {[%clk 0:02:42]} 15. Re1 {[%clk 0:02:12]}  b5 {[%clk 0:02:41]} 16. Nd2 {[%clk 0:02:09]}  Bd5 {[%clk 0:02:28]} 17. Qxb5 {[%clk 0:02:08]}  Bxg2 {[%clk 0:02:27]} 18. Kxg2 {[%clk 0:02:08]}  Ne7 {[%clk 0:02:26]} 19. Nf3 {[%clk 0:02:05]}  c6 {[%clk 0:02:21]} 20. Qc4 {[%clk 0:02:02]}  Qd6 {[%clk 0:02:18]} 21. a4 {[%clk 0:02:01]}  Qd5 {[%clk 0:02:01]} 22. Qxd5 {[%clk 0:01:48]}  Nxd5 {[%clk 0:02:02]} 23. Nxe5 {[%clk 0:01:42]}  Rac8 {[%clk 0:02:02]} 24. Ba3 {[%clk 0:01:38]}  Rfe8 {[%clk 0:02:01]} 25. Nxf7 {[%clk 0:01:37]}  Bxc3 {[%clk 0:02:00]} 26. Rxe8 {[%clk 0:01:37]}  Rxe8 {[%clk 0:02:00]} 27. Rb1 {[%clk 0:01:35]}  Kg7 {[%clk 0:01:47]} 28. Rb7 {[%clk 0:01:33]}  Kf6 {[%clk 0:01:47]} 29. Nd6 {[%clk 0:01:32]}  Re6 {[%clk 0:01:44]} 30. f4 {[%clk 0:01:22]}  Bd4 {[%clk 0:01:40]} 31. Rf7# {[%clk 0:01:21]} 1-0


[Site "https://www.chess.com"]